Workbook

Sheet Beräkning
K1: Pensionsålder | L1: 65 | N1: Nettoränta 1 | O1: =L2-L4-L5 -> 0.01125
A2: Utbetalningstabell för optimering | K2: Avkastning 1 | L2: 0.02 | N2: Nettoränta 2 | O2: =L3-L4-L5 -> 0.05125
A3: Mer i kronor | B3: 20 | D3: 30 | F3: 40 | H3: 50 | K3: Avkastning 2 | L3: 0.06
B4: avk. 1 | C4: avk. 2 | D4: avk. 1 | E4: avk. 2 | F4: avk. 1 | G4: avk. 2 | H4: avk. 1 | I4: avk. 2 | K4: Avkastningsskatt | L4: 0.00375
A5: 1000 | B5: =-GeoSum($O$1,($L$1-B$3)*12)*B14/GeoSum($O$1,-$L$6*12) -> 1000 | C5: =-GeoSum($O$2,($L$1-B$3)*12)*C14/GeoSum($O$2,-$L$6*12) -> 1000 | D5: =-GeoSum($O$1,($L$1-D$3)*12)*D14/GeoSum($O$1,-$L$6*12) -> 1000 | E5: =-GeoSum($O$2,($L$1-D$3)*12)*E14/GeoSum($O$2,-$L$6*12) -> 1000 | F5: =-GeoSum($O$1,($L$1-F$3)*12)*F14/GeoSum($O$1,-$L$6*12) -> 1000 | G5: =-GeoSum($O$2,($L$1-F$3)*12)*G14/GeoSum($O$2,-$L$6*12) -> 1000 | H5: =-GeoSum($O$1,($L$1-H$3)*12)*H14/GeoSum($O$1,-$L$6*12) -> 1000 | I5: =-GeoSum($O$2,($L$1-H$3)*12)*I14/GeoSum($O$2,-$L$6*12) -> 1000 | K5: Driftbelastning | L5: 0.005
A6: 2000 | B6: =-GeoSum($O$1,($L$1-B$3)*12)*B15/GeoSum($O$1,-$L$6*12) -> 2000 | C6: =-GeoSum($O$2,($L$1-B$3)*12)*C15/GeoSum($O$2,-$L$6*12) -> 2000 | D6: =-GeoSum($O$1,($L$1-D$3)*12)*D15/GeoSum($O$1,-$L$6*12) -> 2000 | E6: =-GeoSum($O$2,($L$1-D$3)*12)*E15/GeoSum($O$2,-$L$6*12) -> 2000 | F6: =-GeoSum($O$1,($L$1-F$3)*12)*F15/GeoSum($O$1,-$L$6*12) -> 2000 | G6: =-GeoSum($O$2,($L$1-F$3)*12)*G15/GeoSum($O$2,-$L$6*12) -> 2000 | H6: =-GeoSum($O$1,($L$1-H$3)*12)*H15/GeoSum($O$1,-$L$6*12) -> 2000 | I6: =-GeoSum($O$2,($L$1-H$3)*12)*I15/GeoSum($O$2,-$L$6*12) -> 2000 | K6: Antal år utbetalning | L6: 20
A7: 5000 | B7: =-GeoSum($O$1,($L$1-B$3)*12)*B16/GeoSum($O$1,-$L$6*12) -> 5000 | C7: =-GeoSum($O$2,($L$1-B$3)*12)*C16/GeoSum($O$2,-$L$6*12) -> 5000 | D7: =-GeoSum($O$1,($L$1-D$3)*12)*D16/GeoSum($O$1,-$L$6*12) -> 5000 | E7: =-GeoSum($O$2,($L$1-D$3)*12)*E16/GeoSum($O$2,-$L$6*12) -> 5000 | F7: =-GeoSum($O$1,($L$1-F$3)*12)*F16/GeoSum($O$1,-$L$6*12) -> 5000 | G7: =-GeoSum($O$2,($L$1-F$3)*12)*G16/GeoSum($O$2,-$L$6*12) -> 5000 | H7: =-GeoSum($O$1,($L$1-H$3)*12)*H16/GeoSum($O$1,-$L$6*12) -> 5000 | I7: =-GeoSum($O$2,($L$1-H$3)*12)*I16/GeoSum($O$2,-$L$6*12) -> 5000
A8: 10000 | B8: =-GeoSum($O$1,($L$1-B$3)*12)*B17/GeoSum($O$1,-$L$6*12) -> 10000 | C8: =-GeoSum($O$2,($L$1-B$3)*12)*C17/GeoSum($O$2,-$L$6*12) -> 10000 | D8: =-GeoSum($O$1,($L$1-D$3)*12)*D17/GeoSum($O$1,-$L$6*12) -> 10000 | E8: =-GeoSum($O$2,($L$1-D$3)*12)*E17/GeoSum($O$2,-$L$6*12) -> 10000 | F8: =-GeoSum($O$1,($L$1-F$3)*12)*F17/GeoSum($O$1,-$L$6*12) -> 10000 | G8: =-GeoSum($O$2,($L$1-F$3)*12)*G17/GeoSum($O$2,-$L$6*12) -> 10000 | H8: =-GeoSum($O$1,($L$1-H$3)*12)*H17/GeoSum($O$1,-$L$6*12) -> 10000 | I8: =-GeoSum($O$2,($L$1-H$3)*12)*I17/GeoSum($O$2,-$L$6*12) -> 10000
A11: Sparande | K11: Skattebelastning för 2020
A12: Mer i kronor | B12: 20 | D12: 30 | F12: 40 | H12: 50 | K12: P-skatt | L12: 0.00075
B13: avk. 1 | C13: avk. 2 | D13: avk. 1 | E13: avk. 2 | F13: avk. 1 | G13: avk. 2 | H13: avk. 1 | I13: avk. 2 | K13: K-skatt | L13: 0.00375
A14: 1000 | B14: 306.3685643 | C14: 74.53238256 | D14: 418.299178 | E14: 133.0311756 | F14: 621.2464775 | G14: 253.9479346 | H14: 1097.262278 | I14: 566.099877
A15: 2000 | B15: 612.7371286 | C15: 149.0647651 | D15: 836.5983561 | E15: 266.0623512 | F15: 1242.492955 | G15: 507.8958693 | H15: 2194.524556 | I15: 1132.199754
A16: 5000 | B16: 1531.842821 | C16: 372.6619128 | D16: 2091.49589 | E16: 665.155878 | F16: 3106.232388 | G16: 1269.739673 | H16: 5486.31139 | I16: 2830.499385
A17: 10000 | B17: 3063.685643 | C17: 745.3238256 | D17: 4182.99178 | E17: 1330.311756 | F17: 6212.464775 | G17: 2539.479346 | H17: 10972.62278 | I17: 5660.99877
